[Event "39th Muensterland Open 2022"]
[Site "Muenster"]
[Date "2022.10.03"]
[Round "4.8"]
[White "Bentel, Robin"]
[Black "Klaska, Philipp Leon"]
[Result "1/2-1/2"]
[ECO "A58"]
[WhiteElo "2247"]
[BlackElo "1972"]
[Annotator "TA"]
[PlyCount "60"]
[EventDate "2022.10.01"]
[EventType "swiss"]
[EventCountry "GER"]
[SourceTitle "playchess.com"]
[Source "ChessBase"]
[SourceQuality "1"]
[TimeControl "40/5400+30:1800+30"]

{[%evp 13,60,70,69,75,64,66,47,42,85,87,75,37,104,48,53,39,100,78,68,48,51,0,0,0,25,-29,-22,-23,-18,-26,-25,-21,-28,-41,-39,-101,0,0,0,0,0,0,0,0,0,0,0,0,0]} 1. d4 {[%emt 0:00:05]} Nf6 {[%emt 0:00:17]} 2. c4 {[%emt 0:00:10][%cal Bc2c4,Bc4b5][%mdl 32]} c5 {[%emt 0:00:10]} 3. d5 {[%emt 0:00:11]} b5 {[%emt 0:00:26]} 4. cxb5 {[%emt 0:00:11]} a6 {[%emt 0:00:06]} 5. bxa6 {[%emt 0:00:26]} d6 {[%emt 0:00:15]} 6. Nc3 {[%emt 0:00:17]} g6 {[%emt 0:00:15]} 7. e4 {[%emt 0:01:45]} Bg7 {[%emt 0:00:39]} 8. a7 {[%emt 0:01:58] A58: Benko/Volga Gambit: Lines with 5 bxa6.} Rxa7 {[%emt 0:05:38]} 9. Nf3 {[%emt 0:00:23]} O-O {[%emt 0:01:09]} 10. Be2 {[%emt 0:00:26] White is slightly better.} Ba6 {[%emt 0:04:25]} 11. O-O {[%emt 0:01:06]} Nbd7 {[%emt 0:05:39]} 12. Re1 {[%emt 0:08:10] [#]} Ng4 $146 {[%emt 0:11:47]} (12... Qa8 $14) ({Predecessor:} 12... Qa8 13. h3 Rb8 14. Bxa6 Rxa6 15. Qc2 Ne8 16. Bg5 Kf8 17. b3 Nc7 18. a4 Rab6 {½-½ (54) Jojua,D (2590)-Milanovic,D (2500) Ruma 2017}) 13. h3 {[%emt 0:05:31]} ({White should try} 13. Nb5 $16 Ra8 14. a4) 13... Nge5 $14 {[%emt 0:03:02]} 14. Nxe5 {[%emt 0:00:17]} Bxe5 {[%emt 0:02:24]} (14... Nxe5 $14 15. Nb5 Rb7) 15. a4 {[%emt 0:01:41]} Bxe2 {[%emt 0:04:23]} 16. Qxe2 {[%emt 0:01:50]} Qa8 {[%emt 0:03:38]} 17. Qc2 {[%emt 0:13:58]} (17. Bg5 $14) 17... Rb8 $11 {[%emt 0:05:35]} 18. Ra3 {[%emt 0:21:12]} Bxc3 {[%emt 0:07:22]} 19. Qxc3 {[%emt 0:07:27]} (19. bxc3 $142 Nb6 20. Bh6) 19... Rxa4 {[%emt 0:06:45]} 20. Bh6 {[%emt 0:00:09][%csl Gh6][%cal Rc3g7] [#]} f6 {[%emt 0:01:53]} 21. Rea1 $1 {[%emt 0:00:22][%cal Be1a1,Ba1a3,Ba3b3,Bb3b7][%mdl 32]} Rxa3 {[%emt 0:00:30]} 22. Rxa3 {[%emt 0:00:53]} Qb7 {[%emt 0:00:38]} 23. h4 {[%emt 0:00:27][%cal Oh4h5]} Ne5 {[%emt 0:17:14]} (23... Qxb2 $2 24. Qxb2 Rxb2 25. Ra7 $18) 24. Qh3 {[%emt 0:01:03]} ({Better is} 24. f3 $15) 24... Qc8 {[%emt 0:02:52]} (24... Qxb2 $17 {Threatens to win with ...Nf7.} 25. Qe6+ Nf7) 25. Rb3 $36 {[%emt 0:06:27][%mdl 2048] White has the initiative. The position is equal.} Ra8 {[%emt 0:02:25] White must now prevent ...Ng4.} 26. Qxc8+ {[%emt 0:02:03]} Rxc8 {[%emt 0:00:07]} 27. Rb7 {[%emt 0:04:19]} Kf7 {[%emt 0:01:53]} 28. Bf4 {[%emt 0:02:10]} h5 {[%emt 0:02:26]} 29. Bxe5 {[%emt 0:20:03]} fxe5 {[%emt 0:11:07]} 30. f3 {[%emt 0:00:30]} Ra8 {[%emt 0:00:30] Weighted Error Value: White=0.16 (very precise) /Black=0.15 (very precise)} 1/2-1/2

[Event "39th Muensterland Open 2022"]
[Site "Muenster"]
[Date "2022.10.03"]
[Round "4.9"]
[White "Kamp, Adrian"]
[Black "Goldschmidt, Christian"]
[Result "1/2-1/2"]
[ECO "C45"]
[WhiteElo "1999"]
[BlackElo "2226"]
[Annotator "TA"]
[PlyCount "116"]
[EventDate "2022.10.01"]
[EventType "swiss"]
[EventCountry "GER"]
[SourceTitle "playchess.com"]
[Source "ChessBase"]
[SourceQuality "1"]
[TimeControl "40/5400+30:1800+30"]

{[%evp 17,116,0,47,0,0,6,24,1,6,-43,-46,-56,-62,-82,-70,-70,-70,-69,-73,-106,-113,-131,-128,-106,12,0,0,0,86,86,86,83,86,86,86,86,92,86,144,137,133,135,141,143,152,138,150,146,131,137,139,116,114,114,114,74,72,25,39,0,0,0,0,0,0,0,0,0,0,0,0,0,0,0,0,0,0,0,0,0,0,0,0,0,0,0,0,0,0,0,9,9,9,9,10,0,0,0,0,0,0]} 1. e4 {[%emt 0:00:03]} e5 {[%emt 0:12:02]} 2. Nf3 {[%emt 0:00:20]} Nc6 {[%emt 0:00:05]} 3. d4 {[%emt 0:00:16]} exd4 {[%emt 0:00:04]} 4. Nxd4 {[%emt 0:00:16]} Nf6 {[%emt 0:00:09]} 5. Nxc6 {[%emt 0:00:27]} bxc6 {[%emt 0:00:05]} 6. e5 {[%emt 0:00:16]} Qe7 {[%emt 0:00:05]} 7. Qe2 {[%emt 0:00:11]} Nd5 {[%emt 0:00:06]} 8. c4 {[%emt 0:00:27]} Ba6 {[%emt 0:00:08]} 9. Nd2 {[%emt 0:00:32]} Nf4 {[%emt 0:09:15]} (9... g6 $11 {deserves consideration.}) 10. Qe4 {[%emt 0:03:45] C45: Scotch Game.} (10. Qe3 $5 {[%cal Re3f4]} Ng6 11. f4 $11) 10... Ne6 {[%emt 0:00:21]} 11. b3 {[%emt 0:11:30] [#]} Rb8 $146 {[%emt 0:01:00]} ({Predecessor:} 11... g6 12. Nf3 Bg7 13. Be2 O-O 14. O-O d5 15. exd6 cxd6 16. Rb1 Bb7 17. Qc2 c5 {0-1 (31) Gomez Garrido,C (2496)-Granda Zuniga,J (2663) Barcelona 2014}) 12. f4 {[%emt 0:02:06] White has an edge.} c5 {[%emt 0:02:59]} 13. Nf3 {[%emt 0:05:28]} (13. Bb2 $11 {was preferrable.}) 13... Bb7 $15 {[%emt 0:00:21]} 14. Qe3 {[%emt 0:00:43]} g6 $1 {[%emt 0:00:57]} 15. Bb2 {[%emt 0:10:42][%cal Of4f5]} Bh6 {[%emt 0:01:53]} 16. g3 {[%emt 0:00:11]} Nd4 {[%emt 0:00:44]} 17. Bxd4 {[%emt 0:03:28]} cxd4 {[%emt 0:00:08]} 18. Qd3 {[%emt 0:00:28]} d6 {[%emt 0:04:48]} 19. Bg2 {[%emt 0:02:16]} dxe5 {[%emt 0:00:35] ...e4 is the strong threat.} 20. O-O {[%emt 0:00:23]} O-O {[%emt 0:06:59]} (20... exf4 $2 21. Rae1 Qe3+ 22. Rxe3+ fxe3 23. Ne5 $18) (20... f6 $17 {Hoping for ...c5.} 21. Rae1 e4 22. Qxd4 c5) 21. Nxe5 $11 {[%emt 0:01:55]} Bxg2 {[%emt 0:00:28]} 22. Kxg2 {[%emt 0:00:16] Black must now prevent Nc6.} c5 {[%emt 0:00:20]} (22... Qd6 $11) 23. Nc6 $1 $16 {[%emt 0:03:10][%csl LRb8,LRe7][%cal Be5c6,Bc6d4,Bd4b5,Bb5c7][%mdl 32]} Qb7 {[%emt 0:00:10]} 24. Qf3 {[%emt 0:00:09]} Rbe8 {[%emt 0:09:44] [#]} 25. Nxd4 $1 {[%emt 0:01:08]} Qa6 {[%emt 0:02:34] [#]} 26. Nb5 $36 {[%emt 0:03:00][%mdl 2048] Threatens to win with Nc7. Keeping Black busy.} Bg7 {[%emt 0:01:40]} 27. Nc7 {[%emt 0:05:10][%csl LRa6,LRe8]} Qa3 {[%emt 0:02:13]} (27... Qa5 $142 28. Nxe8 Bxa1) 28. Nxe8 {[%emt 0:00:44]} Bxa1 {[%emt 0:00:35]} 29. Qe2 {[%emt 0:00:15]} Bd4 {[%emt 0:03:52] [#]} 30. Nc7 $1 {[%emt 0:02:40] Inhibits Qa6.} Qa5 {[%emt 0:15:04]} 31. Nd5 {[%emt 0:01:29]} Qd8 {[%emt 0:03:11]} 32. Re1 {[%emt 0:02:40]} a5 {[%emt 0:00:04]} 33. f5 {[%emt 0:09:17]} Kg7 {[%emt 0:01:59]} 34. Qe4 {[%emt 0:03:43]} Qg5 {[%emt 0:03:00]} 35. fxg6 {[%emt 0:03:48]} hxg6 {[%emt 0:00:59]} 36. Qf4 {[%emt 0:03:22] Active counter play!} Qxf4 {[%emt 0:01:10]} 37. Nxf4 {[%emt 0:03:09][%mdl 4096] Endgame KRB-KRN} ({Better is} 37. gxf4 $16 a4 38. bxa4) 37... a4 $11 {[%emt 0:00:38]} 38. Nd5 {[%emt 0:09:19]} axb3 {[%emt 0:00:45] The position is equal.} 39. axb3 {[%emt 0:00:07]} Rb8 {[%emt 0:04:00]} 40. Rb1 {[%emt 0:00:35]} Ra8 {[%emt 0:01:59]} 41. b4 {[%emt 0:33:42]} Ra2+ {[%emt 0:30:27]} 42. Kh1 {[%emt 0:00:43]} cxb4 {[%emt 0:00:29]} 43. Nxb4 {[%emt 0:00:32]} Rd2 {[%emt 0:00:49]} 44. Nc6 {[%emt 0:04:15]} Bb2 {[%emt 0:04:50]} 45. Na5 {[%emt 0:01:45]} Rc2 {[%emt 0:00:47]} 46. Nb3 {[%emt 0:00:57]} f5 {[%emt 0:05:19]} 47. c5 {[%emt 0:00:00]} Kf6 {[%emt 0:00:00]} 48. Rd1 {[%emt 0:00:00]} Rc3 {[%emt 0:00:00]} 49. Rd6+ {[%emt 0:00:00]} Ke5 {[%emt 0:00:00]} 50. Rb6 {[%emt 0:00:00]} g5 {[%emt 0:00:00][%cal Bg6g5,Bg5g4,Bg4h3][%mdl 32]} 51. c6 {[%emt 0:00:00]} Ba3 {[%emt 0:00:00]} 52. Rb5+ {[%emt 0:00:00]} Kd6 {[%emt 0:00:00]} 53. Nd4 {[%emt 0:00:00]} Bc5 {[%emt 0:00:00]} 54. Nxf5+ {[%emt 0:00:00]} Kxc6 {[%emt 0:00:00]} 55. Rb1 {[%emt 0:00:00]} g4 {[%emt 0:03:49]} 56. Re1 {[%emt 0:01:08]} Kd5 {[%emt 0:00:56]} 57. Nh6 {[%emt 0:02:07]} Rc4 {[%emt 0:00:19]} 58. h4 {[%emt 0:01:56]} gxh3 {[%emt 0:00:56] Black defended with fortune.  Weighted Error Value: White=0.10 (very precise) /Black=0.11 (very precise)} 1/2-1/2

[Event "39th Muensterland Open 2022"]
[Site "Muenster"]
[Date "2022.10.03"]
[Round "4.10"]
[White "Gallasch, Robin"]
[Black "Koellner, Aaron Noah"]
[Result "1/2-1/2"]
[ECO "A41"]
[WhiteElo "2021"]
[BlackElo "2204"]
[Annotator "TA"]
[PlyCount "104"]
[EventDate "2022.10.01"]
[EventType "swiss"]
[EventCountry "GER"]
[SourceTitle "playchess.com"]
[Source "ChessBase"]
[SourceQuality "1"]
[TimeControl "40/5400+30:1800+30"]

{[%evp 11,104,-13,0,-19,-18,-18,-11,-30,-42,-55,-39,-63,-68,-69,-62,-69,-69,-70,-40,-37,-58,-41,-44,-48,-16,-16,-19,-22,0,0,11,20,25,-53,-37,-91,223,178,361,352,339,185,155,144,171,171,166,165,245,244,289,252,250,103,210,208,322,362,470,470,451,445,346,193,193,173,235,248,246,162,161,156,148,43,50,34,27,0,0,-4,0,0,0,0,0,0,0,0,0,0,0,0,0,0,0]} 1. d4 {[%emt 0:00:07]} d6 {[%emt 0:01:41]} 2. c4 {[%emt 0:00:42]} e5 {[%emt 0:00:26]} 3. dxe5 {[%emt 0:08:35]} dxe5 {[%emt 0:07:05]} 4. Qxd8+ {[%emt 0:00:08]} Kxd8 {[%emt 0:00:05]} 5. Nc3 {[%emt 0:00:21]} Be6 {[%emt 0:00:50]} 6. b3 {[%emt 0:00:54]} c6 {[%emt 0:00:46]} 7. Bb2 {[%emt 0:00:08] A41: 1 d4 d6: Tartakower System and Modern Defence.} Nd7 {[%emt 0:00:48]} 8. g3 {[%emt 0:02:01]} Nh6 {[%emt 0:09:23]} 9. Bg2 {[%emt 0:01:53]} f6 {[%emt 0:01:18]} 10. e3 {[%emt 0:00:47]} Kc7 {[%emt 1:13:08]} 11. Nge2 {[%emt 0:00:31]} Nc5 {[%emt 0:00:00]} 12. Rd1 {[%emt 0:06:38] Inhibits Nd3+.} a5 {[%emt 0:00:00][%cal Ba7a5,Ba5a4,Ba4a3][%mdl 32]} 13. O-O {[%emt 0:04:04]} a4 {[%emt 0:00:00] [#]} 14. Nc1 $146 {[%emt 0:02:02]} ({Predecessor:} 14. Ba3 axb3 15. Bxc5 Bxc5 16. axb3 Ra3 17. Rb1 Bb4 18. Rfc1 Rd8 19. Kf1 Nf7 20. Rc2 {0-1 (39) Medeiros Jr,F-Reis,P (2376) Salvador 2010}) 14... a3 {[%emt 0:00:00]} 15. Ba1 {[%emt 0:00:07]} Nf7 {[%emt 0:00:00]} 16. Nd3 {[%emt 0:03:52]} Nxd3 {[%emt 0:00:00]} 17. Rxd3 {[%emt 0:02:09]} h5 {[%emt 0:00:00]} 18. Rc1 {[%emt 0:06:43][%cal Oc3d5]} Bf5 {[%emt 0:00:00]} 19. e4 {[%emt 0:05:30]} Bc8 {[%emt 0:00:00]} 20. c5 {[%emt 0:02:12]} h4 {[%emt 0:00:00]} 21. Na4 {[%emt 0:00:48]} Be6 {[%emt 0:00:00]} 22. f4 {[%emt 0:02:18]} (22. Bc3 $11) 22... g6 $1 $15 {[%emt 0:00:00]} 23. fxe5 {[%emt 0:16:08]} ({White should play} 23. Rf3 $15) 23... fxe5 $2 {[%emt 0:00:00][%mdl 8192]} (23... Nxe5 $17 {keeps the pressure on.} 24. Bxe5+ fxe5) 24. Rf1 $36 {[%emt 0:00:54][%cal Of1f7][%mdl 2048] Black must now prevent Rxf7+! White is in control.} Bg7 $2 {[%emt 0:00:00] [#]} (24... Re8 25. Bh3 Bxh3 26. Rxf7+ Kb8) 25. Bh3 $1 {[%emt 0:01:40][%mdl 512]} Rad8 {[%emt 0:00:00]} 26. Rxd8 {[%emt 0:01:10]} (26. Bxe6 $142 Rxd3 27. Rxf7+ Kb8 28. Bc3 (28. Rxg7 Rd1+ 29. Kf2 hxg3+ 30. hxg3 Rxa1 $16) 28... hxg3 29. hxg3 (29. Rxg7 {gets mated.} gxh2+ 30. Kf2 h1=Q 31. Rg8+ Rxg8 32. Bxe5+ Ka7 33. Bg4 Rf8+) 29... Rxg3+ 30. Kf2 Rxc3 31. Nxc3) 26... Nxd8 {[%emt 0:00:00]} 27. Bxe6 {[%emt 0:00:12]} Nxe6 {[%emt 0:00:00]} 28. Rf7+ {[%emt 0:00:37]} Kd8 {[%emt 0:00:00]} 29. Rxb7 {[%emt 0:00:17]} hxg3 {[%emt 0:00:00]} (29... Rf8 {was worth a try.}) 30. hxg3 {[%emt 0:00:33]} Rh5 {[%emt 0:00:07]} 31. Bc3 {[%emt 0:01:35]} Bh6 {[%emt 0:00:43]} 32. Bb4 {[%emt 0:02:14]} (32. Ba5+ $18 {is more deadly.} Ke8 33. Kg2) 32... Bc1 {[%emt 0:01:13]} (32... g5 $16 {might work better.}) 33. Kg2 {[%emt 0:01:23]} g5 {[%emt 0:00:17]} (33... Be3 {was called for.} 34. Bxa3 g5 35. Rb8+ Kc7) 34. Nb6 {[%emt 0:04:13]} g4 {[%emt 0:02:08]} 35. Nc4 {[%emt 0:00:24] Against Be3. aiming for Nd6.} Ke8 {[%emt 0:02:46]} 36. Nd6+ {[%emt 0:05:56]} Kf8 {[%emt 0:00:07]} 37. Rf7+ {[%emt 0:00:16]} (37. Rb8+ $142 Kg7 38. Nf5+ Kf7 39. Rc8) 37... Kg8 {[%emt 0:00:08]} 38. Rf1 {[%emt 0:03:25]} Be3 {[%emt 0:03:09]} (38... Bb2 {is a better defense.} 39. Ne8 Rh8 40. Nf6+ Kf8 41. Nxg4+ Ke7) 39. Bxa3 {[%emt 0:02:03]} Rh7 {[%emt 0:01:08]} 40. Nc4 {[%emt 0:04:06]} Bd4 {[%emt 0:01:31]} 41. Rf6 {[%emt 0:32:43]} Re7 {[%emt 0:03:04]} 42. b4 {[%emt 0:00:00]} ({White should try} 42. Rg6+ $16 Kh7 43. Rxg4) 42... Kg7 $14 {[%emt 0:00:36]} 43. Rf5 {[%emt 0:00:00]} Ra7 {[%emt 0:00:48]} 44. Rf1 {[%emt 0:00:00]} ({Worse is} 44. Nxe5 Bxe5 45. Rxe5 Nd4 $17) 44... Ng5 {[%emt 0:01:18] The position is equal.} 45. Re1 {[%emt 0:00:00]} Ra8 {[%emt 0:00:56]} 46. Re2 {[%emt 0:00:00]} Nf3 {[%emt 0:00:31]} 47. Bc1 {[%emt 0:00:00]} Rh8 {[%emt 0:01:22] ( -> ...Rh2+)} 48. Be3 {[%emt 0:00:00]} Rh2+ {[%emt 0:14:07]} 49. Kf1 {[%emt 0:00:00] And now Rxh2 would win.} Rh1+ {[%emt 0:00:16]} 50. Kg2 {[%emt 0:00:00]} Rh2+ {[%emt 0:00:06]} 51. Kf1 {[%emt 0:00:00] Threatens to win with Rxh2.} Rh1+ {[%emt 0:00:08]} 52. Kg2 {[%emt 0:00:00]} Rh2+ {[%emt 0:00:04] Black escapes into a draw.  Weighted Error Value: White=0.24 (precise) /Black=0.30} 1/2-1/2

[Event "39th Muensterland Open 2022"]
[Site "Muenster"]
[Date "2022.10.04"]
[Round "5.1"]
[White "Koellner, Ruben Gideon"]
[Black "Quinones-Maletti, Julio Guillermo"]
[Result "1-0"]
[ECO "A46"]
[WhiteElo "2403"]
[BlackElo "2020"]
[Annotator "TA"]
[PlyCount "107"]
[EventDate "2022.10.01"]
[EventType "swiss"]
[EventCountry "GER"]
[SourceTitle "playchess.com"]
[Source "ChessBase"]
[SourceQuality "1"]
[TimeControl "40/5400+30:1800+30"]

{[%evp 9,107,13,9,14,10,16,12,12,8,21,16,0,0,1,0,0,18,13,15,0,-7,-14,-2,-10,-18,-56,-83,-103,-35,-47,-37,-39,-26,-20,-19,-31,-30,-23,-36,-101,23,24,45,8,953,950,906,83,76,0,804,0,70,0,797,785,29984,288,288,280,266,266,389,360,351,266,276,267,371,370,326,313,435,427,428,449,1076,1078,1066,1066,1035,1008,969,824,5522,5527,29962,29955,29978,29977,29973,5114,29991,29988,29991,29992,29993,29994,29994,29993]} 1. d4 {[%emt 0:00:03]} Nf6 {[%emt 1:31:00]} 2. Nf3 {[%emt 0:00:03]} d6 {[%emt 0:00:06]} 3. Nbd2 {[%emt 0:00:28]} Bf5 {[%emt 0:00:05]} 4. Nh4 {[%emt 0:01:26]} Bd7 {[%emt 0:00:12]} 5. e4 {[%emt 0:00:21]} e5 {[%emt 0:00:08]} 6. dxe5 {[%emt 0:00:16] A46: 1 d4 Nf6 2 Nf3 e6: Torre, London and Colle Systems.} dxe5 {[%emt 0:00:06][%cal Of6e4]} 7. Nhf3 {[%emt 0:00:12] [#]} Bd6 $146 {[%emt 0:05:10]} ({Predecessor:} 7... Nc6 8. Bc4 Bc5 9. c3 a5 10. Qe2 O-O 11. Nf1 a4 12. Ng3 Ne8 13. O-O Nd6 {½-½ (27) Vorotnikov,V (2474)-Dvalishvili,P (2440) Moscow 2015}) 8. Bd3 {[%emt 0:00:57] The position is equal.} Bc6 {[%emt 1:28:26]} 9. O-O {[%emt 0:14:26]} Nbd7 {[%emt 0:01:20]} 10. b3 {[%emt 1:17:18]} O-O {[%emt 0:02:29]} 11. Bb2 {[%emt 0:00:46]} Re8 {[%emt 0:07:29][%cal Bf8e8,Be8e6,Be6h6][%mdl 32]} 12. Qe2 {[%emt 0:10:51]} a6 {[%emt 0:09:20]} 13. Nc4 {[%emt 0:02:28]} Nc5 {[%emt 0:08:34]} 14. Ncxe5 {[%emt 0:17:44] And now Bc4 would win.} Bxe4 {[%emt 0:03:25]} 15. Bxe4 {[%emt 0:00:20]} Ncxe4 {[%emt 0:02:43]} (15... Bxe5 16. Bxh7+ (16. Nxe5 Ncxe4 17. f3 Ng5 $14) 16... Nxh7 17. Nxe5 $16) 16. Qc4 {[%emt 0:00:36]} Re6 {[%emt 0:16:58] With the idea ...Qe8.} 17. Rfe1 {[%emt 0:20:47][%cal Oe5f7] Threatens to win with Nxf7!} Qe8 {[%emt 0:17:04]} 18. Rxe4 {[%emt 0:23:25] [#]} Nxe4 {[%emt 0:01:03]} (18... b5 $1 $17 {[%cal Rb5c4]} 19. Qe2 Nxe4 20. Qxe4 f6) 19. Qxe4 $15 {[%emt 0:00:06]} f6 {[%emt 0:21:44][%cal Bf7f6,Bf6e5][%mdl 32]} 20. Qh4 {[%emt 0:04:06] Hoping for Ng4.} fxe5 {[%emt 0:03:50]} 21. Ng5 {[%emt 0:04:20][%csl LRe6,LRh7]} Rh6 {[%emt 0:00:27]} 22. Qc4+ {[%emt 0:00:02]} Kf8 {[%emt 0:00:13]} 23. Re1 {[%emt 0:00:33][%cal Ob2e5]} Qg6 {[%emt 0:04:43]} 24. f4 {[%emt 0:02:24] [#]} ({Better is} 24. Bc1 $15) 24... Be7 {[%emt 0:05:14]} (24... Re8 25. fxe5 Qxg5 26. Rf1+ Rf6 27. exf6 Qc5+ 28. Bd4 Qxc4 29. fxg7+ (29. bxc4 gxf6 30. Rxf6+ Kg8 $11) 29... Kg8 30. bxc4 $16) (24... b5 $1 $17 {[%cal Rb5c4]} 25. Qd5 Re8 26. Bxe5 Bxe5 27. Rxe5 Rxe5 28. Qxe5 Qb6+ 29. Kf1 Qd6 30. Qf5+ Ke8 31. Qe4+ (31. Qf7+ Kd8 $17) 31... Qe7) 25. Rxe5 $11 {[%emt 0:00:46] Dancing on a razor blade.} b5 $1 {[%emt 0:02:39]} 26. Ne6+ {[%emt 0:02:03][%mdl 1024] White has compensation.} Kf7 $2 {[%emt 0:00:46][%mdl 8192]} (26... Kg8 $11 27. Qd5 (27. Qxc7 Qf7 $11) 27... c6 28. Qxc6 Re8) 27. Qd5 $18 {[%emt 0:00:23]} (27. Ng5+ Kf8 28. Ne6+ (28. Qxc7 Qb6+ 29. Qxb6 Rxb6 $16) (28. Qd5 Rd8 $11) 28... Qxe6 29. Qxe6 Rxe6 30. Rxe6 Bd6 $16) 27... c6 {[%emt 0:00:27]} 28. Ng5+ $2 {[%emt 0:00:52]} (28. Qxc6 $18 {is the precise move to win.} Rb8 29. Qd5) 28... Kf8 $16 {[%emt 0:00:20]} 29. Ne6+ $2 {[%emt 0:00:29][%mdl 8192]} (29. Rf5+ $16 Ke8 30. Qe5) 29... Kf7 $18 {[%emt 0:00:01]} 30. Ng5+ $2 {[%emt 0:00:30]} (30. Qxc6 $18 Rb8 31. Qd5) 30... Kf8 $14 {[%emt 0:00:17]} 31. Ne6+ $2 {[%emt 0:00:14][%mdl 8192]} (31. Rf5+ $14 Ke8 32. Qe5) 31... Kf7 $18 {[%emt 0:00:15] White leaves nothing to chance now.} 32. Qxc6 {[%emt 0:00:00]} Qg4 {[%emt 0:01:31]} 33. Qxa8 $2 {[%emt 0:00:16]} (33. Ng5+ {mates} Bxg5 34. Qb7+ Kg6 35. Rxg5+ Qxg5 36. Qxg7+ Kf5 37. Qxg5+ Ke6 38. Qxh6+ Kd5 39. Qxh7) 33... Qd1+ {[%emt 0:00:13]} 34. Kf2 {[%emt 0:00:07] Threatening mate with Ng5+.} Rxe6 {[%emt 0:00:11]} 35. Rxe6 {[%emt 0:00:47]} Kxe6 {[%emt 0:00:54][%mdl 4096] Endgame KQB-KQB} (35... Qxc2+ $142 36. Kf3 (36. Re2 Bc5+ 37. Ke1 Qb1+ 38. Kd2 Qxb2+ 39. Kd3 Qb1+ 40. Rc2 Qf1+ 41. Ke4 Qe1+ 42. Kd5 Qd1+ 43. Kxc5 Qxc2+ 44. Kd6 Qg6+ 45. Kc7 Qc2+ 46. Kd6 Qg6+ 47. Kc7 Qc2+ 48. Qc6 Qxa2 $14) 36... Kxe6 37. Qg8+ (37. Bxg7 Qd3+ 38. Kf2 Bc5+ 39. Ke1 Qb1+ 40. Ke2 Qxa2+ 41. Kd3 Qb1+ 42. Ke2 Qc2+ 43. Kf3 Qxb3+ 44. Kg4 Qd1+ 45. Qf3 h5+ 46. Kg3 Qe1+ 47. Kh3 Qe3 $19) (37. Qxa6+ Kf7 $11) 37... Kd7 38. Qd5+ (38. Qxg7 Qd3+ 39. Kf2 Qd2+ 40. Kf1 Qd1+ 41. Kf2 Qd2+ 42. Kg3 Qd3+ 43. Kg4 h5+ 44. Kxh5 Qf5+ 45. Kh6 Qxf4+ 46. Kg6 Qe4+ 47. Kh5 Qf5+ 48. Kh6 Qf4+ 49. Kh7 Qxh2+ 50. Kg8 Qb8+ 51. Kh7 Qh2+ 52. Kg8 Qb8+ 53. Kh7 Qh2+ $11) 38... Bd6) 36. Qe4+ {[%emt 0:00:37]} Kf7 {[%emt 0:00:29]} 37. Bd4 {[%emt 0:00:54]} ({But not} 37. Qxh7 Bh4+ 38. g3 Qd2+ 39. Kf3 Bf6 40. Qh5+ Kf8 41. Qh8+ Kf7 $18) 37... Qh5 {[%emt 0:00:50]} 38. Qe5 {[%emt 0:00:48]} Qh4+ {[%emt 0:00:27]} 39. Kf3 {[%emt 0:00:09]} Qh6 {[%emt 0:00:48]} 40. Qd5+ {[%emt 0:00:44]} Kf8 {[%emt 0:01:11]} 41. c4 {[%emt 0:05:27]} bxc4 {[%emt 0:01:28]} 42. bxc4 {[%emt 0:00:03]} ({Less strong is} 42. Qf5+ Ke8 43. Qc8+ Bd8 44. Qxc4 Qh5+ 45. Ke3 Qxh2 46. Qg8+ Kd7 47. Qxg7+ Kc6 $18) 42... Qxh2 {[%emt 0:00:43]} (42... g5 $142 43. fxg5 Qh5+ 44. Ke4 Qxh2 45. Qf5+ Ke8 46. Qc8+ Kf7) 43. Qf5+ {[%emt 0:27:19]} Ke8 {[%emt 0:01:05]} 44. Qh3 {[%emt 0:02:02]} ({Not} 44. Qe6 Qh5+ 45. Ke3 Qa5 46. Qc6+ Kf7 $16) 44... Qxh3+ {[%emt 0:01:16]} 45. gxh3 {[%emt 0:00:01] KB-KB} g5 {[%emt 0:03:28]} 46. f5 {[%emt 0:00:25][%cal Bf4f5,Bf5f6,Bf6f7][%mdl 32] Ke4 is the strong threat.} h5 {[%emt 0:00:15]} 47. Ke4 {[%emt 0:00:47]} Kf7 {[%emt 0:00:30]} 48. c5 {[%emt 0:00:30]} Ke8 {[%emt 0:02:38]} 49. f6 {[%emt 0:01:35]} Bd8 {[%emt 0:01:16]} 50. Kf5 {[%emt 0:00:51]} (50. c6 $142 Bc7 51. Kf5 Kd8 52. Ke6 Ba5 53. f7 Bb4 54. Bf6+ Kc7 55. Be7) 50... g4 {[%emt 0:00:09]} 51. hxg4 {[%emt 0:00:26] White mates.} hxg4 {[%emt 0:00:08]} 52. Ke6 {[%emt 0:00:31]} Bc7 {[%emt 0:02:12]} 53. f7+ {[%emt 0:00:05]} Kf8 {[%emt 0:00:09]} 54. c6 {[%emt 0:00:05] Weighted Error Value: White=0.60/Black=0.58} 1-0